lending/lending_fUSD_20250808
["ID","MTS","AMOUNT","RATE_DAILY","PERIOD"]
[377933245,1754614275767,-481.01,0.00025479,2]
[377933246,1754614275777,-1915.90379476,0.00025479,2]
[377933247,1754614275786,-973.9,0.00025479,2]
[377933248,1754614275797,-1809.74,0.00025479,2]
[377933249,1754614275806,-777.43,0.00025479,2]
[377933250,1754614275816,-899.62,0.00025479,2]
[377933251,1754614275827,-960.68,0.00025479,2]
[377933252,1754614275837,-340.63607276,0.00025479,2]
[377933253,1754614275846,-715.39,0.00025479,2]
[377933254,1754614275856,-3151.2,0.00025479,2]
[377933255,1754614275865,-1024.64917755,0.00025479,2]
[377933256,1754614275875,-452.94102088,0.00025479,2]
[377933257,1754614275886,-1570.29,0.00025479,2]
[377933258,1754614275896,-565.95,0.00025479,2]
[377933259,1754614275906,-755.9084131,0.00025479,2]
[377933260,1754614275916,-451.58,0.00025479,2]
[377933261,1754614275926,-786.14,0.00025479,2]
[377933262,1754614275936,-1047.76,0.00025479,2]
[377933263,1754614275946,-1433.09,0.00025479,2]
[377933264,1754614275955,-666.42,0.00025479,2]
[377933265,1754614275965,-500.0,0.0002548,2]
[377933266,1754614275975,-150.0,0.0002548,2]
[377933267,1754614275985,-169.29,0.00025687,2]
[377933268,1754614275993,-649.46614271,0.00025753,2]
[377933269,1754614276000,-412.49,0.00025753,2]
[377933270,1754614276009,-1496.23472056,0.00025753,2]
[377933271,1754614276016,-1160.61722608,0.00025753,2]
[377933272,1754614276024,-502.93,0.00025753,2]
[377933273,1754614276032,-1559.71591811,0.00025753,2]
[377933274,1754614276042,-738.61952842,0.00025753,2]
[377933275,1754614276053,-1144.2580362,0.00025753,2]
[377933276,1754614276062,-1208.18829751,0.00025753,2]
[377933277,1754614276073,-363.06659985,0.00025753,2]
[377933278,1754614276083,-3097.02512364,0.00025753,2]
[377933279,1754614276092,-717.54000003,0.00025753,2]
[377933280,1754614276102,-791.22393334,0.00025753,2]
[377933281,1754614276112,-453.83049174,0.00025753,2]
[377933282,1754614276122,-833.7018191,0.00025753,2]
[377933283,1754614276131,-743.06188036,0.00025753,2]
[377933284,1754614276141,-1092.68422977,0.00025753,2]
[377933285,1754614276151,-2279.60764883,0.00025753,2]
[377933286,1754614276163,-1210.82731748,0.00025753,2]
[377933287,1754614276172,-900.29953145,0.00025753,2]
[377933288,1754614276182,-757.08,0.00025753,2]
[377933289,1754614276193,-603.12,0.00025753,2]
[377933290,1754614276203,-1934.01090731,0.00025753,2]
[377933291,1754614276213,-541.2138278,0.00025753,2]
[377933292,1754614276222,-411.32119701,0.00025753,2]
[377933293,1754614276234,-1218.77413845,0.00025753,2]
[377933294,1754614276244,-1023.43,0.00025753,2]
[377933295,1754614276253,-1397.78173075,0.00025753,2]
[377933296,1754614276264,-440.607362,0.00025753,2]
[377933297,1754614276273,-1429.31387549,0.00025753,2]
[377933298,1754614276285,-1015.01415225,0.00025753,2]
[377933299,1754614276295,-1063.25278471,0.00025753,2]
[377933300,1754614276305,-536.7940057,0.00025753,2]
[377933301,1754614276315,-1603.36239551,0.00025753,2]
[377933302,1754614276376,-160.71,0.00025753,2]
[377933303,1754614276386,-1163.02510765,0.00025753,2]
[377933304,1754614276396,-481.16362497,0.00025753,2]
[377933305,1754614276406,-973.94268794,0.00025753,2]
[377933306,1754614276417,-1809.97055025,0.00025753,2]
[377933307,1754614276427,-777.61,0.00025753,2]
[377933308,1754614276437,-899.7281852,0.00025753,2]
[377933309,1754614276447,-960.91889794,0.00025753,2]
[377933310,1754614276457,-715.45740038,0.00025753,2]
[377933311,1754614276467,-3151.40696333,0.00025753,2]
[377933312,1754614276477,-1570.29036835,0.00025753,2]
[377933313,1754614276486,-566.16449481,0.00025753,2]
[377933314,1754614276495,-451.64302899,0.00025753,2]
[377933315,1754614276505,-786.16367752,0.00025753,2]
[377933316,1754614276514,-1047.92,0.00025753,2]
[377933317,1754614276526,-1433.1134753,0.00025753,2]
[377933318,1754614276536,-430.82618088,0.00025754,2]
[377933319,1754614276545,-150.0,0.00025754,2]
[377933320,1754614276554,-1152.0,0.00025802,2]
[377933321,1754614276564,-150.0,0.00026028,2]
[377933322,1754614276574,-615.0,0.00026098,7]
[377933323,1754614276583,-615.0,0.00026098,7]
[377933324,1754614276593,-269.0,0.00026302,2]
[377933325,1754614276603,-3134.0,0.00026312,2]
[377933326,1754614276614,-173.68,0.00026438,2]
[377933327,1754614276623,-500.0,0.00026696,2]
[377933328,1754614276633,-615.0,0.00026822,7]
[377933329,1754614276643,-434.27,0.00026849,7]
[377933330,1754614276652,-842.27441137,0.000269,7]
[377933331,1754614276663,-457.55740054,0.000269,7]
[377933332,1754614276673,-615.0,0.00027064,7]
[377933333,1754614276684,-496.18548413,0.00027303,2]
[377933334,1754614276694,-150.0,0.00027397,15]
[377933335,1754614276703,-155.0,0.00027397,80]
[377933336,1754614276713,-300.0,0.00027397,2]
[377933337,1754614276722,-500.0,0.00027397,5]
[377933338,1754614276733,-1000.0,0.00027492,2]
[377933339,1754614276742,-1084.0,0.00027503,5]
[377933340,1754614276752,-615.0,0.00027547,14]
[377933341,1754614276761,-3135.08060698,0.00027554,2]
[377933342,1754614276771,-4000.0,0.00027965,4]
[377933343,1754614276783,-457.55740054,0.00028,10]
[377933344,1754614276793,-615.0,0.00028031,14]
[377933345,1754614276803,-173.68,0.00028063,2]
[377933346,1754614276813,-1613.0,0.00028147,2]
[377933347,1754614276822,-615.0,0.00028272,14]
[377933348,1754614276831,-155.01081481,0.00028576,2]
[377933349,1754614276842,-615.0,0.00028997,14]
[377933350,1754614276852,-615.0,0.00028997,14]
[377933351,1754614276863,-842.27441137,0.00029,10]
[377933352,1754614276873,-153.0,0.00029068,2]
[377933353,1754614276883,-153.0,0.00029068,2]
[377933354,1754614276894,-153.0,0.00029068,2]
[377933355,1754614276903,-153.0,0.00029068,2]
[377933356,1754614276913,-153.0,0.00029068,2]
[377933357,1754614276923,-153.0,0.00029068,2]
[377933358,1754614276933,-153.0,0.00029068,2]
[377933359,1754614276944,-153.0,0.00029068,2]
[377933360,1754614276954,-153.0,0.00029068,2]
[377933361,1754614276963,-153.0,0.00029068,2]
[377933362,1754614276973,-1284.31995482,0.00029091,2]
[377933363,1754614276982,-496.18548413,0.00029222,2]
[377933364,1754614276991,-842.03384774,0.00029394,2]
[377933365,1754614277002,-169.29,0.0002947,2]
[377933366,1754614277012,-500.0,0.00029522,2]
[377933367,1754614277022,-651.405,0.00029589,12]
[377933368,1754614277034,-173.68,0.00029687,2]
[377933369,1754614277045,-615.0,0.00029722,14]
[377933370,1754614277054,-174.13047171,0.000299,2]
[377933371,1754614277064,-322.86,0.0003,2]
[377933372,1754614277075,-200.0,0.00030137,5]
[377933373,1754614277086,-500.0,0.00030137,7]
[377933374,1754614277097,-500.0,0.00030137,7]
[377933375,1754614277108,-500.0,0.00030137,7]
[377933376,1754614277119,-500.0,0.00030137,7]
[377933377,1754614277130,-500.0,0.00030137,7]
[377933378,1754614277141,-500.0,0.00030137,7]
[377933379,1754614277154,-500.0,0.00030137,7]
[377933380,1754614277177,-500.0,0.00030137,7]
[377933381,1754614277193,-500.0,0.00030137,7]
[377933382,1754614277207,-500.0,0.00030137,7]
[377933383,1754614277219,-500.0,0.00030137,7]
[377933384,1754614277230,-500.0,0.00030137,7]
[377933385,1754614277241,-500.0,0.00030137,7]
[377933386,1754614277253,-500.0,0.00030137,7]
[377933387,1754614277263,-500.0,0.00030137,7]
[377933388,1754614277274,-500.0,0.00030137,7]
[377933389,1754614277289,-500.0,0.00030137,7]
[377933390,1754614277300,-500.0,0.00030137,7]
[377933391,1754614277310,-500.0,0.00030137,7]
[377933392,1754614277321,-500.0,0.00030137,7]
[377933393,1754614277332,-500.0,0.00030137,7]
[377933394,1754614277342,-500.0,0.00030137,7]
[377933395,1754614277353,-500.0,0.00030137,7]
[377933396,1754614277363,-500.0,0.00030137,7]
[377933397,1754614277374,-500.0,0.00030137,7]
[377933398,1754614277386,-500.0,0.00030137,7]
[377933399,1754614277396,-500.0,0.00030137,7]
[377933400,1754614277406,-500.0,0.00030137,7]
[377933401,1754614277416,-3135.08060698,0.00030408,2]
[377933402,1754614277426,-615.0,0.00030447,14]
[377933403,1754614277436,-2258.0,0.00030704,2]
[377933404,1754614277446,-4000.0,0.00030719,4]
[377933405,1754614277457,-4101.21,0.000309,7]
[377933406,1754614277467,-150.0,0.00030979,120]
[377933407,1754614277477,-496.18548413,0.00031142,2]
[377933408,1754614277489,-173.68,0.00031311,2]
[377933409,1754614277499,-338.199999,0.00032,5]
[377933410,1754614277508,-167.652,0.00032023,31]
[377933411,1754614277518,-868.54,0.00032328,17]
[377933412,1754614277529,-500.0,0.00032348,2]
[377933413,1754614277539,-150.0,0.000324,2]
[377933414,1754614277549,-400.0,0.00032876,2]
[377933415,1754614277558,-400.0,0.00032876,2]
[377933416,1754614277568,-400.0,0.00032876,2]
[377933417,1754614277577,-400.0,0.00032876,2]
[377933418,1754614277587,-400.0,0.00032876,2]
[377933419,1754614277597,-404.01291841,0.00032876,2]
[377933420,1754614277607,-400.0,0.00032876,120]
[377933421,1754614277616,-400.0,0.00032876,120]
[377933422,1754614277626,-400.0,0.00032876,120]
[377933423,1754614277636,-400.0,0.00032876,120]
[377933424,1754614277647,-400.0,0.00032876,120]
[377933425,1754614277658,-400.0,0.00032876,120]
[377933426,1754614277669,-400.0,0.00032876,120]
[377933427,1754614277679,-400.0,0.00032876,120]
[377933428,1754614277690,-400.0,0.00032876,120]
[377933429,1754614277701,-400.0,0.00032876,120]
[377933430,1754614277711,-400.0,0.00032876,120]
[377933431,1754614277721,-400.0,0.00032876,120]
[377933432,1754614277731,-400.0,0.00032876,120]
[377933433,1754614277741,-400.0,0.00032876,120]
[377933434,1754614277751,-400.0,0.00032876,120]
[377933435,1754614277761,-462.12754482,0.00032876,120]
[377933436,1754614277770,-503.37852918,0.00032876,120]
[377933437,1754614277786,-1101.04922853,0.00032876,30]
[377933438,1754614277797,-250.0,0.00032877,3]
[377933439,1754614277807,-500.0,0.00032877,2]
[377933440,1754614277817,-66665.36,0.000329,14]
[377933441,1754614277827,-2736.14,0.000329,30]
[377933442,1754614277837,-4958.45,0.000329,14]
[377933443,1754614277847,-30486.03,0.000329,2]
[377933444,1754614277862,-5357.41,0.00032904,30]
[377933445,1754614277876,-173.68,0.00032936,2]
[377933446,1754614277886,-322.86,0.00033,2]
[377933447,1754614277896,-300.0,0.00033,7]
[377933448,1754614277907,-496.18548413,0.00033061,2]
[377933449,1754614277918,-2318.28452559,0.00033094,2]
[377933450,1754614277928,-2318.28452558,0.00033094,2]
[377933451,1754614277938,-2318.28452558,0.00033094,2]
[377933452,1754614277948,-2500.0,0.00033129,7]
[377933453,1754614277957,-2500.0,0.00033138,7]
[377933454,1754614277967,-2500.0,0.00033147,7]
[377933455,1754614277977,-500.0,0.00033151,2]
[377933456,1754614277986,-2500.0,0.00033156,7]
[377933457,1754614277996,-2500.0,0.00033165,7]
[377933458,1754614278006,-200.0,0.00033171,2]
[377933459,1754614278017,-200.0,0.00033171,2]
[377933460,1754614278030,-200.0,0.00033171,2]
[377933461,1754614278039,-200.0,0.00033171,2]
[377933462,1754614278050,-200.0,0.00033171,2]
[377933463,1754614278060,-200.0,0.00033171,2]
[377933464,1754614278070,-200.0,0.00033171,2]
[377933465,1754614278079,-200.0,0.00033171,2]
[377933466,1754614278089,-200.0,0.00033171,2]
[377933467,1754614278099,-200.0,0.00033171,2]
[377933468,1754614278110,-200.0,0.00033171,2]
[377933469,1754614278120,-200.0,0.00033171,2]
[377933470,1754614278130,-200.0,0.00033171,2]
[377933471,1754614278141,-200.0,0.00033171,2]
[377933472,1754614278150,-200.0,0.00033171,2]
[377933473,1754614278163,-200.0,0.00033171,2]
[377933474,1754614278174,-200.0,0.00033171,2]
[377933475,1754614278183,-200.0,0.00033171,2]
[377933476,1754614278197,-200.0,0.00033171,2]
[377933477,1754614278208,-200.0,0.00033171,2]
[377933478,1754614278218,-200.0,0.00033171,2]
[377933479,1754614278229,-200.0,0.00033171,2]
[377933480,1754614278240,-200.0,0.00033171,2]
[377933481,1754614278250,-200.0,0.00033171,2]
[377933482,1754614278261,-200.0,0.00033171,2]
[377933483,1754614278272,-200.0,0.00033171,2]
[377933484,1754614278283,-200.0,0.00033171,2]
[377933485,1754614278294,-200.0,0.00033171,2]
[377933486,1754614278305,-200.0,0.00033171,2]
[377933487,1754614278314,-200.0,0.00033171,2]
[377933488,1754614278324,-200.0,0.00033171,2]
[377933489,1754614278333,-200.0,0.00033171,2]
[377933490,1754614278343,-200.0,0.00033171,2]
[377933491,1754614278352,-200.0,0.00033171,2]
[377933492,1754614278361,-200.0,0.00033171,2]
[377933493,1754614278371,-203.0,0.00033171,2]
[377933494,1754614278380,-421.0,0.00033171,13]
[377933495,1754614278390,-2500.0,0.00033173,7]
[377933496,1754614278400,-2500.0,0.00033182,7]
[377933497,1754614278410,-2500.0,0.00033191,7]
[377933498,1754614278419,-2500.0,0.000332,7]
[377933499,1754614278429,-2500.0,0.00033209,7]
[377933500,1754614278440,-2500.0,0.00033217,7]
[377933501,1754614278449,-2500.0,0.00033226,7]
[377933502,1754614278459,-2500.0,0.00033235,7]
[377933503,1754614278469,-2500.0,0.00033244,7]
[377933504,1754614278478,-2500.0,0.00033253,7]
[377933505,1754614278488,-3135.08060698,0.00033261,2]
[377933506,1754614278497,-2500.0,0.00033261,7]
[377933507,1754614278508,-2500.0,0.0003327,7]
[377933508,1754614278518,-2500.0,0.00033279,7]
[377933509,1754614278528,-2500.0,0.00033288,7]
[377933510,1754614278538,-2500.0,0.00033297,7]
[377933511,1754614278547,-511.0,0.000333,2]
[377933512,1754614278557,-2500.0,0.00033305,7]
[377933513,1754614278567,-2500.0,0.00033314,7]
[377933514,1754614278577,-2500.0,0.00033323,7]
[377933515,1754614278586,-2500.0,0.00033332,7]
[377933516,1754614278596,-2500.0,0.00033341,7]
[377933517,1754614278606,-500.0,0.00033425,2]
[377933518,1754614278615,-4000.0,0.00033474,4]
[377933519,1754614278624,-3162.0,0.00033494,2]
[377933520,1754614278639,-150.0,0.0003358,2]
[377933521,1754614278648,-500.0,0.00033699,2]
[377933522,1754614278658,-169.29,0.00033758,2]
[377933523,1754614278667,-404.11722491,0.00033973,2]
[377933524,1754614278677,-300.0,0.00034,9]
[377933525,1754614278687,-842.27441137,0.00034,7]
[377933526,1754614278696,-457.55740054,0.00034,7]
[377933527,1754614278706,-14827.39218925,0.00034,3]
[377933528,1754614278715,-655.94142628,0.00034246,120]
[377933529,1754614278725,-169.29,0.00034264,2]
[377933530,1754614278734,-338.2,0.000343,9]
[377933531,1754614278744,-173.68,0.0003456,2]
[377933532,1754614278758,-30486.03,0.000347,2]
[377933533,1754614278767,-150.0,0.000347,30]
[377933534,1754614278779,-150.0,0.0003477,2]
[377933535,1754614278788,-4958.45,0.000348,14]
[377933536,1754614278798,-3012.33090879,0.000349,120]
[377933537,1754614278807,-496.18548413,0.00034981,2]
[377933538,1754614278817,-300.0,0.00035,10]
[377933539,1754614278827,-66665.36,0.00035,14]
[377933540,1754614278836,-2736.14,0.00035,30]
[377933541,1754614278845,-842.27441137,0.00035,30]
[377933542,1754614278855,-842.27441137,0.00035,120]
[377933543,1754614278864,-457.55740054,0.00035,30]
[377933544,1754614278874,-16776.98263047,0.00035,15]
[377933545,1754614278884,-1085.675,0.00035068,22]
[377933546,1754614278894,-791.88198458,0.00035101,2]
[377933547,1754614278903,-504.04040817,0.00035174,2]
[377933548,1754614278912,-338.2,0.000352,11]
[377933549,1754614278922,-150.0,0.00035255,120]
[377933550,1754614278932,-300.0,0.000353,11]
[377933551,1754614278942,-152.66,0.00035397,2]
[377933552,1754614278951,-592.24,0.00035397,2]
[377933553,1754614278961,-150.0,0.00035429,120]
[377933554,1754614278972,-170.36487689,0.00035462,120]
[377933555,1754614278982,-1000.0,0.00035599,2]
[377933556,1754614278993,-1000.0,0.00035599,2]
[377933557,1754614279003,-150.0,0.00035613,120]
[377933558,1754614279015,-1690.96,0.00035616,120]
[377933559,1754614279025,-300.0,0.00035616,17]
[377933560,1754614279039,-1534.96,0.00035616,120]
[377933561,1754614279050,-306.34185988,0.00035616,2]
[377933562,1754614279061,-30486.03,0.000357,2]
[377933563,1754614279072,-4958.45,0.000358,14]
[377933564,1754614279082,-2600.0,0.000359,13]
[377933565,1754614279093,-150.0,0.0003595,2]
[377933566,1754614279103,-322.86,0.00036,2]
[377933567,1754614279114,-160.0,0.00036,30]
[377933568,1754614279126,-300.0,0.00036,12]
[377933569,1754614279137,-163.0,0.00036,120]
[377933570,1754614279148,-163.0,0.00036,120]
[377933571,1754614279160,-12221.68,0.000361,7]
[377933572,1754614279170,-66665.36,0.000361,14]
[377933573,1754614279181,-2736.14,0.000361,30]
[377933574,1754614279192,-273.08,0.000361,7]
[377933575,1754614279206,-3135.08060698,0.00036115,2]
[377933576,1754614279216,-150.0,0.00036175,120]
[377933577,1754614279226,-173.68,0.00036184,2]
[377933578,1754614279236,-300.0,0.000362,12]
[377933579,1754614279246,-4000.0,0.00036228,4]
[377933580,1754614279255,-150.0,0.00036235,120]
[377933581,1754614279265,-300.0,0.000363,13]
[377933582,1754614279277,-150.0,0.00036356,120]
[377933583,1754614279288,-151.0,0.00036366,14]
[377933584,1754614279298,-12221.68,0.000365,7]
[377933585,1754614279308,-273.08,0.000365,7]
[377933586,1754614279319,-914.0,0.00036538,2]
[377933587,1754614279330,-166.75987,0.0003657,2]
[377933588,1754614279340,-178.629,0.0003663,7]
[377933589,1754614279351,-178.628,0.0003663,7]
[377933590,1754614279361,-178.628,0.0003663,7]
[377933591,1754614279371,-178.629,0.0003663,7]
[377933592,1754614279381,-178.628,0.0003663,7]
[377933593,1754614279391,-295.69,0.000367,120]
[377933594,1754614279401,-30486.03,0.000367,2]
[377933595,1754614279411,-1534.96,0.00036712,120]
[377933596,1754614279421,-150.0,0.00036732,120]
[377933597,1754614279432,-4958.45,0.000368,14]
[377933598,1754614279442,-152.81,0.0003683,60]
[377933599,1754614279452,-152.81,0.0003683,60]
[377933600,1754614279462,-1000.0,0.00036849,120]
[377933601,1754614279471,-769.30055647,0.00036899,7]
[377933602,1754614279481,-689.27130893,0.000369,2]
[377933603,1754614279491,-496.18548413,0.000369,2]
[377933604,1754614279503,-350.0,0.00036903,2]
[377933605,1754614279513,-152.81,0.0003693,60]
[377933606,1754614279523,-350.0,0.00036963,30]
[377933607,1754614279536,-1690.96,0.00036986,120]
[377933608,1754614279546,-336.45940666,0.0003699,2]
[377933609,1754614279556,-18442.77771284,0.00036999,7]
[377933610,1754614279566,-126346.36391039,0.00036999,7]
[377933611,1754614279575,-200.0,0.00036999,3]
[377933612,1754614279585,-600.0,0.00036999,3]
[377933613,1754614279595,-200.0,0.00036999,3]
[377933614,1754614279604,-241.44402639,0.00036999,3]
[377933615,1754614279614,-160.0,0.00036999,3]
[377933616,1754614279627,-401.19111454,0.00036999,3]
[377933617,1754614279637,-160.0,0.00036999,3]
[377933618,1754614279646,-160.0,0.00036999,3]
[377933619,1754614279656,-160.0,0.00036999,3]
[377933620,1754614279666,-160.0,0.00036999,3]
[377933621,1754614279677,-160.0,0.00036999,3]
[377933622,1754614279686,-160.0,0.00036999,3]
[377933623,1754614279697,-160.0,0.00036999,3]
[377933624,1754614279707,-267.46074303,0.00036999,3]
[377933625,1754614279717,-277.35679052,0.00036999,3]
[377933626,1754614279727,-287.61899177,0.00036999,3]
[377933627,1754614279737,-160.0,0.00036999,3]
[377933628,1754614279746,-298.26089446,0.00036999,3]
[377933629,1754614279756,-160.0,0.00036999,3]
[377933630,1754614279767,-309.29654756,0.00036999,3]
[377933631,1754614279779,-160.0,0.00036999,3]
[377933632,1754614279789,-320.74051982,0.00036999,3]
[377933633,1754614279799,-160.0,0.00036999,3]
[377933634,1754614279810,-332.60791905,0.00036999,3]
[377933635,1754614279819,-344.91441206,0.00036999,3]
[377933636,1754614279829,-357.6762453,0.00036999,3]
[377933637,1754614279839,-370.91026638,0.00036999,3]
[377933638,1754614279848,-384.63394623,0.00036999,3]
[377933639,1754614279858,-398.86540225,0.00036999,3]
[377933640,1754614279869,-400.0,0.00036999,2]
[377933641,1754614279879,-400.0,0.00036999,2]
[377933642,1754614279889,-400.0,0.00036999,2]
[377933643,1754614279899,-1412045.8198906,0.00037,3]
[377933644,1754614279909,-1000.0,0.00037,120]
[377933645,1754614279919,-176.85027878,0.00037,30]
[377933646,1754614279929,-50218.70972874,0.00037,7]
[377933647,1754614279939,-229.18138729,0.00037,2]
[377933648,1754614279949,-339.0,0.00037,2]
[377933649,1754614279959,-44150.429378,0.00037,5]
[377933650,1754614279970,-300.0,0.00037,14]
[377933651,1754614279979,-12221.68,0.00037,7]
[377933652,1754614279989,-273.08,0.00037,7]
[377933653,1754614279999,-150.0,0.00037,2]
[377933654,1754614280010,-842.27441137,0.00037,7]
[377933655,1754614280020,-457.55740054,0.00037,7]
[377933656,1754614280033,-162.27127594,0.00037,14]
[377933657,1754614280042,-152.81,0.0003703,60]
[377933658,1754614280051,-152.81,0.00037066,60]
[377933659,1754614280061,-41174.64737976,0.000371,30]
[377933660,1754614280071,-66665.36,0.000371,14]
[377933661,1754614280081,-2736.14,0.000371,30]
[377933662,1754614280090,-511.0,0.00037114,10]
[377933663,1754614280100,-150.0,0.0003713,2]
[377933664,1754614280110,-152.81,0.0003713,60]
[377933665,1754614280120,-152.81,0.00037166,60]
[377933666,1754614280130,-300.0,0.000372,14]
[377933667,1754614280140,-152.81,0.0003723,60]
[377933668,1754614280149,-152.81,0.00037266,60]
[377933669,1754614280162,-400.0,0.00037273,2]
[377933670,1754614280171,-400.0,0.00037273,2]
[377933671,1754614280181,-400.0,0.00037273,2]
[377933672,1754614280191,-300.0,0.000373,14]
[377933673,1754614280203,-152.81,0.0003733,60]
[377933674,1754614280213,-152.81,0.00037366,60]
[377933675,1754614280223,-335.65,0.000374,120]
[377933676,1754614280232,-280.0,0.000374,30]
[377933677,1754614280242,-150.0,0.0003743,120]
[377933678,1754614280252,-152.81,0.0003743,60]
[377933679,1754614280261,-150.0,0.0003746,120]
[377933680,1754614280271,-152.81,0.00037466,60]
[377933681,1754614280283,-150.0,0.00037481,120]
[377933682,1754614280293,-500.63225,0.000375,3]
[377933683,1754614280302,-3509.23,0.000375,7]
[377933684,1754614280312,-4687.97,0.000375,7]
[377933685,1754614280322,-1177.34,0.000375,7]
[377933686,1754614280332,-4211.54,0.000375,7]
[377933687,1754614280341,-17573.5,0.000375,7]
[377933688,1754614280350,-223.86,0.000375,7]
[377933689,1754614280360,-155.01081481,0.00037525,15]
[377933690,1754614280370,-400.0,0.00037547,2]
[377933691,1754614280379,-400.0,0.00037547,2]
[377933692,1754614280388,-400.0,0.00037547,2]
[377933693,1754614280399,-152.81,0.00037566,60]
[377933694,1754614280408,-166.75988,0.0003757,2]
[377933695,1754614280418,-2516.92,0.00037588,30]
[377933696,1754614280427,-2516.92,0.00037588,30]
[377933697,1754614280437,-2516.92,0.00037588,30]
[377933698,1754614280446,-2516.92,0.00037588,30]
[377933699,1754614280456,-4243.01417146,0.0003759,2]
[377933700,1754614280467,-30486.03,0.000376,2]
[377933701,1754614280476,-150.0,0.00037619,120]
[377933702,1754614280486,-350.0,0.00037648,30]
[377933703,1754614280496,-152.81,0.00037666,60]
[377933704,1754614280506,-714.34,0.00037668,2]
[377933705,1754614280516,-537.64,0.00037668,2]
[377933706,1754614280525,-165.55,0.00037668,2]
[377933707,1754614280536,-165.55,0.00037668,2]
[377933708,1754614280546,-537.64,0.00037668,2]
[377933709,1754614280558,-165.55,0.00037668,2]
[377933710,1754614280567,-535.06,0.00037668,2]
[377933711,1754614280576,-165.55,0.00037668,2]
[377933712,1754614280586,-442.24,0.00037668,2]
[377933713,1754614280597,-4958.45,0.000377,14]
[377933714,1754614280606,-1444.0,0.00037753,120]
[377933715,1754614280616,-152.81,0.00037766,60]
[377933716,1754614280625,-381.60394571,0.00037769,7]
[377933717,1754614280635,-326.3,0.00037808,60]
[377933718,1754614280649,-1302.81,0.00037808,27]
[377933719,1754614280659,-1534.96,0.00037808,120]
[377933720,1754614280668,-173.68,0.00037808,2]
[377933721,1754614280678,-400.0,0.00037821,2]
[377933722,1754614280688,-530.28,0.00037821,2]
[377933723,1754614280798,-496.19,0.00037821,2]
[377933724,1754614280809,-326.31,0.00037839,80]
[377933725,1754614280818,-2516.92,0.00037862,30]
[377933726,1754614280828,-2516.92,0.00037862,30]
[377933727,1754614280838,-152.81,0.00037866,60]
[377933728,1754614280849,-326.31,0.00037869,100]
[377933729,1754614280859,-804.30674778,0.00037899,30]
[377933730,1754614280869,-3509.23,0.000379,7]
[377933731,1754614280880,-3183.53,0.000379,120]
[377933732,1754614280891,-326.31,0.000379,120]
[377933733,1754614280901,-500.0,0.000379,13]
[377933734,1754614280911,-152.81,0.00037966,60]
[377933735,1754614280921,-150.0,0.0003799,120]
[377933736,1754614280932,-381.60394571,0.00038,30]
[377933737,1754614280943,-12221.68,0.00038,7]
[377933738,1754614280953,-273.08,0.00038,7]
[377933739,1754614280963,-297.32738023,0.00038,30]
[377933740,1754614280973,-189913.44815051,0.00038,3]
[377933741,1754614280982,-400.0,0.00038,120]
[377933742,1754614280992,-4500.01234242,0.00038,7]
[377933743,1754614281002,-3122.0,0.00038,60]
[377933744,1754614281012,-14940.73899042,0.00038,3]